[Event "Late Titled Tuesday Blitz February 8 2022"]
[White "Aaditya Dhingra"]
[Black "Brunner, Nicolas"]
[WhiteFideId "25678191"]
[BlackFideId "620246"]
[WhiteElo "1789"]
[BlackElo "2372"]
[Result "1-0"]
[Round "03"]
[TimeControl "180+1"]
[Date "2022.02.09"]
[WhiteClock "0:00:23"]
[BlackClock "0:01:26"]

1. e4 {[%clk 0:03:00]}  e5 {[%clk 0:02:59]} 2. Nf3 {[%clk 0:03:01]}  Nc6 {[%clk 0:03:00]} 3. Bb5 {[%clk 0:03:01]}  a6 {[%clk 0:03:00]} 4. Bxc6 {[%clk 0:03:02]}  dxc6 {[%clk 0:02:59]} 5. O-O {[%clk 0:03:02]}  Bg4 {[%clk 0:02:56]} 6. h3 {[%clk 0:03:02]}  h5 {[%clk 0:02:54]} 7. d3 {[%clk 0:03:02]}  Qf6 {[%clk 0:02:53]} 8. Nbd2 {[%clk 0:03:01]}  g5 {[%clk 0:02:51]} 9. Nc4 {[%clk 0:03:01]}  Bxf3 {[%clk 0:02:49]} 10. Qxf3 {[%clk 0:03:01]}  Qxf3 {[%clk 0:02:50]} 11. gxf3 {[%clk 0:03:01]}  f6 {[%clk 0:02:49]} 12. h4 {[%clk 0:03:00]}  gxh4 {[%clk 0:02:48]} 13. Kh2 {[%clk 0:03:00]}  Bh6 {[%clk 0:02:46]} 14. Bxh6 {[%clk 0:02:30]}  Rxh6 {[%clk 0:02:43]} 15. Rg1 {[%clk 0:02:25]}  Kf7 {[%clk 0:02:41]} 16. Rg2 {[%clk 0:02:10]}  Ne7 {[%clk 0:02:41]} 17. Rag1 {[%clk 0:02:08]}  Rg6 {[%clk 0:02:41]} 18. Na5 {[%clk 0:01:29]}  Rxg2+ {[%clk 0:02:40]} 19. Rxg2 {[%clk 0:01:28]}  b6 {[%clk 0:02:40]} 20. Nc4 {[%clk 0:01:27]}  Rg8 {[%clk 0:02:36]} 21. Ne3 {[%clk 0:01:22]}  Rxg2+ {[%clk 0:02:33]} 22. Nxg2 {[%clk 0:01:21]}  Ng6 {[%clk 0:02:32]} 23. Kh3 {[%clk 0:01:20]}  Kg7 {[%clk 0:02:29]} 24. Nxh4 {[%clk 0:01:18]}  Nxh4 {[%clk 0:02:28]} 25. Kxh4 {[%clk 0:01:17]}  Kg6 {[%clk 0:02:28]} 26. c3 {[%clk 0:01:13]}  c5 {[%clk 0:02:28]} 27. f4 {[%clk 0:00:59]}  exf4 {[%clk 0:02:25]} 28. f3 {[%clk 0:00:54]}  Kh6 {[%clk 0:02:22]} 29. d4 {[%clk 0:00:54]}  c4 {[%clk 0:01:54]} 30. e5 {[%clk 0:00:36]}  fxe5 {[%clk 0:01:53]} 31. dxe5 {[%clk 0:00:36]}  Kg6 {[%clk 0:01:53]} 32. e6 {[%clk 0:00:35]}  Kf6 {[%clk 0:01:46]} 33. e7 {[%clk 0:00:33]}  Kxe7 {[%clk 0:01:46]} 34. Kxh5 {[%clk 0:00:34]}  Kf6 {[%clk 0:01:44]} 35. Kg4 {[%clk 0:00:33]}  Ke5 {[%clk 0:01:45]} 36. Kg5 {[%clk 0:00:33]}  b5 {[%clk 0:01:44]} 37. Kg4 {[%clk 0:00:28]}  a5 {[%clk 0:01:41]} 38. a3 {[%clk 0:00:28]}  c5 {[%clk 0:01:37]} 39. Kg5 {[%clk 0:00:28]}  b4 {[%clk 0:01:37]} 40. Kg4 {[%clk 0:00:27]}  b3 {[%clk 0:01:33]} 41. a4 {[%clk 0:00:23]}  Ke6 {[%clk 0:01:27]} 42. Kxf4 {[%clk 0:00:23]}  Kf6 {[%clk 0:01:28]} 43. Ke4 {[%clk 0:00:22]}  Ke6 {[%clk 0:01:26]} 44. f4 {[%clk 0:00:23]}  Kf6 {[%clk 0:01:26]} 45. Kd5 {[%clk 0:00:23]}  Kf5 {[%clk 0:01:27]} 46. Kxc4 {[%clk 0:00:23]}  Kxf4 {[%clk 0:01:27]} 47. Kxc5 {[%clk 0:00:23]}  Ke3 {[%clk 0:01:26]} 48. Kc4 {[%clk 0:00:23]} 1-0


[Site "https://www.chess.com"]

[Event "Late Titled Tuesday Blitz February 8 2022"]
[White "Adewumi, Tanitoluwa"]
[Black "Velikanov, Alexander"]
[WhiteFideId "30966396"]
[BlackFideId "2039290"]
[WhiteElo "2445"]
[BlackElo "2259"]
[Result "0-1"]
[Round "03"]
[TimeControl "180+1"]
[Date "2022.02.09"]
[WhiteClock "0:00:12"]
[BlackClock "0:00:46"]

1. b3 {[%clk 0:03:00]}  b6 {[%clk 0:02:56]} 2. Bb2 {[%clk 0:03:01]}  Bb7 {[%clk 0:02:55]} 3. e3 {[%clk 0:02:59]}  e6 {[%clk 0:02:54]} 4. Nf3 {[%clk 0:03:00]}  Nf6 {[%clk 0:02:55]} 5. c4 {[%clk 0:02:59]}  g6 {[%clk 0:02:55]} 6. d4 {[%clk 0:02:55]}  Bg7 {[%clk 0:02:55]} 7. Nbd2 {[%clk 0:02:56]}  Ne4 {[%clk 0:02:52]} 8. Nxe4 {[%clk 0:02:55]}  Bxe4 {[%clk 0:02:53]} 9. Bd3 {[%clk 0:02:55]}  Bxd3 {[%clk 0:02:52]} 10. Qxd3 {[%clk 0:02:56]}  O-O {[%clk 0:02:52]} 11. O-O {[%clk 0:02:56]}  d6 {[%clk 0:02:51]} 12. e4 {[%clk 0:02:56]}  Nd7 {[%clk 0:02:50]} 13. Rad1 {[%clk 0:02:56]}  c6 {[%clk 0:02:50]} 14. e5 {[%clk 0:02:55]}  Qc7 {[%clk 0:02:42]} 15. Ba3 {[%clk 0:02:52]}  c5 {[%clk 0:02:00]} 16. dxc5 {[%clk 0:02:52]}  Nxc5 {[%clk 0:01:40]} 17. Qxd6 {[%clk 0:02:41]}  Rfc8 {[%clk 0:01:37]} 18. Rfe1 {[%clk 0:02:25]}  Bf8 {[%clk 0:01:34]} 19. Qxc7 {[%clk 0:02:23]}  Rxc7 {[%clk 0:01:35]} 20. Nd4 {[%clk 0:02:06]}  Rd7 {[%clk 0:01:27]} 21. Nc6 {[%clk 0:01:38]}  Rc7 {[%clk 0:01:27]} 22. Nd4 {[%clk 0:01:35]}  Rd7 {[%clk 0:01:27]} 23. Nb5 {[%clk 0:01:25]}  Rad8 {[%clk 0:01:22]} 24. Rxd7 {[%clk 0:01:23]}  Rxd7 {[%clk 0:01:23]} 25. Bxc5 {[%clk 0:00:55]}  Bxc5 {[%clk 0:01:23]} 26. Nd6 {[%clk 0:00:55]}  Bd4 {[%clk 0:00:53]} 27. Ne8 {[%clk 0:00:47]}  Bxe5 {[%clk 0:00:51]} 28. g3 {[%clk 0:00:32]}  Bh8 {[%clk 0:00:47]} 29. c5 {[%clk 0:00:13]}  bxc5 {[%clk 0:00:47]} 30. Rc1 {[%clk 0:00:12]}  Kf8 {[%clk 0:00:45]} 31. Rxc5 {[%clk 0:00:11]}  Kxe8 {[%clk 0:00:45]} 32. Rc8+ {[%clk 0:00:12]}  Rd8 {[%clk 0:00:46]} 33. Rc7 {[%clk 0:00:12]}  Bd4 {[%clk 0:00:46]} 0-1


[Site "https://www.chess.com"]

[Event "Late Titled Tuesday Blitz February 8 2022"]
[White "Andreikin, Dmitry"]
[Black "Smirnov, Pavel"]
[WhiteFideId "4158814"]
[BlackFideId "4123425"]
[WhiteElo "2736"]
[BlackElo "2571"]
[Result "1-0"]
[Round "03"]
[TimeControl "180+1"]
[Date "2022.02.08"]
[WhiteClock "0:00:51"]
[BlackClock "0:00:07"]

1. d4 {[%clk 0:03:00]}  Nf6 {[%clk 0:02:59]} 2. c4 {[%clk 0:03:00]}  e6 {[%clk 0:02:59]} 3. Nf3 {[%clk 0:02:56]}  d5 {[%clk 0:02:59]} 4. Nc3 {[%clk 0:02:50]}  c6 {[%clk 0:02:58]} 5. g3 {[%clk 0:02:51]}  Be7 {[%clk 0:02:57]} 6. Bg2 {[%clk 0:02:51]}  O-O {[%clk 0:02:58]} 7. O-O {[%clk 0:02:51]}  Nbd7 {[%clk 0:02:58]} 8. b3 {[%clk 0:02:46]}  b6 {[%clk 0:02:57]} 9. Bb2 {[%clk 0:02:46]}  Ba6 {[%clk 0:02:56]} 10. Nd2 {[%clk 0:02:45]}  b5 {[%clk 0:02:56]} 11. c5 {[%clk 0:02:44]}  b4 {[%clk 0:02:55]} 12. Na4 {[%clk 0:02:42]}  Bb5 {[%clk 0:02:54]} 13. Re1 {[%clk 0:02:41]}  Qc7 {[%clk 0:02:53]} 14. Rc1 {[%clk 0:02:34]}  Rfe8 {[%clk 0:02:44]} 15. f4 {[%clk 0:02:32]}  a5 {[%clk 0:02:36]} 16. e3 {[%clk 0:02:30]}  Bf8 {[%clk 0:02:29]} 17. Ba1 {[%clk 0:02:30]}  g6 {[%clk 0:02:25]} 18. g4 {[%clk 0:02:26]}  h5 {[%clk 0:01:58]} 19. h3 {[%clk 0:02:14]}  hxg4 {[%clk 0:01:56]} 20. hxg4 {[%clk 0:02:15]}  Be7 {[%clk 0:01:45]} 21. Nb2 {[%clk 0:01:57]}  Kg7 {[%clk 0:01:43]} 22. Nbc4 {[%clk 0:01:49]}  dxc4 {[%clk 0:01:36]} 23. bxc4 {[%clk 0:01:49]}  Ba6 {[%clk 0:01:36]} 24. g5 {[%clk 0:01:49]}  Rh8 {[%clk 0:01:26]} 25. Qf3 {[%clk 0:01:41]}  Rh4 {[%clk 0:01:24]} 26. Qxc6 {[%clk 0:01:34]}  Qxc6 {[%clk 0:01:18]} 27. Bxc6 {[%clk 0:01:35]}  Rah8 {[%clk 0:01:14]} 28. Nf3 {[%clk 0:01:25]}  Rh3 {[%clk 0:00:32]} 29. Kg2 {[%clk 0:01:11]}  Nb8 {[%clk 0:00:18]} 30. d5 {[%clk 0:01:01]}  Nxc6 {[%clk 0:00:16]} 31. dxc6 {[%clk 0:01:02]}  a4 {[%clk 0:00:14]} 32. Red1 {[%clk 0:00:58]}  Bc8 {[%clk 0:00:11]} 33. Rd7 {[%clk 0:00:52]}  Bxd7 {[%clk 0:00:10]} 34. cxd7 {[%clk 0:00:53]}  Ra8 {[%clk 0:00:07]} 35. Kxh3 {[%clk 0:00:51]} 1-0


[Site "https://www.chess.com"]

[Event "Late Titled Tuesday Blitz February 8 2022"]
[White "Andrews, Todd"]
[Black "Baker, Chris W"]
[WhiteFideId "2012456"]
[BlackFideId "401676"]
[WhiteElo "2444"]
[BlackElo "2130"]
[Result "0-1"]
[Round "03"]
[TimeControl "180+1"]
[Date "2022.02.09"]
[WhiteClock "0:00:13"]
[BlackClock "0:00:08"]

1. e4 {[%clk 0:03:00]}  e5 {[%clk 0:02:59]} 2. Nf3 {[%clk 0:02:55]}  Nc6 {[%clk 0:02:59]} 3. Bb5 {[%clk 0:02:53]}  a6 {[%clk 0:02:59]} 4. Ba4 {[%clk 0:02:46]}  Nf6 {[%clk 0:02:59]} 5. O-O {[%clk 0:02:46]}  Be7 {[%clk 0:02:59]} 6. Re1 {[%clk 0:02:46]}  b5 {[%clk 0:02:59]} 7. Bb3 {[%clk 0:02:47]}  O-O {[%clk 0:02:59]} 8. c3 {[%clk 0:02:46]}  d6 {[%clk 0:02:57]} 9. h3 {[%clk 0:02:46]}  Na5 {[%clk 0:02:55]} 10. Bc2 {[%clk 0:02:45]}  c5 {[%clk 0:02:55]} 11. d4 {[%clk 0:02:45]}  Qc7 {[%clk 0:02:55]} 12. Nbd2 {[%clk 0:02:41]}  Be6 {[%clk 0:02:53]} 13. d5 {[%clk 0:02:40]}  Bd7 {[%clk 0:02:53]} 14. Nf1 {[%clk 0:02:41]}  c4 {[%clk 0:02:29]} 15. Ng3 {[%clk 0:02:35]}  Rfe8 {[%clk 0:02:26]} 16. Nh4 {[%clk 0:02:19]}  Nxd5 {[%clk 0:02:09]} 17. exd5 {[%clk 0:02:18]}  Bxh4 {[%clk 0:02:06]} 18. Bxh7+ {[%clk 0:02:14]}  Kxh7 {[%clk 0:02:05]} 19. Qh5+ {[%clk 0:02:14]}  Kg8 {[%clk 0:02:05]} 20. Qxh4 {[%clk 0:02:15]}  Qd8 {[%clk 0:01:44]} 21. Bg5 {[%clk 0:02:14]}  f6 {[%clk 0:01:42]} 22. Bd2 {[%clk 0:02:10]}  Nb7 {[%clk 0:01:36]} 23. Nh5 {[%clk 0:02:06]}  Qe7 {[%clk 0:01:22]} 24. Rad1 {[%clk 0:01:33]}  Qf7 {[%clk 0:01:21]} 25. Re3 {[%clk 0:01:31]}  Bf5 {[%clk 0:00:58]} 26. Rf3 {[%clk 0:01:08]}  Bg6 {[%clk 0:00:51]} 27. Nxf6+ {[%clk 0:00:51]}  gxf6 {[%clk 0:00:50]} 28. Rxf6 {[%clk 0:00:51]}  Qh7 {[%clk 0:00:39]} 29. Bh6 {[%clk 0:00:51]}  Rf8 {[%clk 0:00:29]} 30. Re6 {[%clk 0:00:37]}  Nd8 {[%clk 0:00:20]} 31. Re7 {[%clk 0:00:30]}  Nf7 {[%clk 0:00:20]} 32. Qf6 {[%clk 0:00:25]}  Qxh6 {[%clk 0:00:19]} 33. Re1 {[%clk 0:00:25]}  Rae8 {[%clk 0:00:18]} 34. Re3 {[%clk 0:00:24]}  Rxe7 {[%clk 0:00:18]} 35. Qxe7 {[%clk 0:00:25]}  Ng5 {[%clk 0:00:15]} 36. Rg3 {[%clk 0:00:25]}  Rf5 {[%clk 0:00:15]} 37. Qxd6 {[%clk 0:00:21]}  Kh7 {[%clk 0:00:14]} 38. h4 {[%clk 0:00:19]}  Nf7 {[%clk 0:00:14]} 39. Qe7 {[%clk 0:00:17]}  Qc1+ {[%clk 0:00:13]} 40. Kh2 {[%clk 0:00:17]}  Qf4 {[%clk 0:00:13]} 41. Kh3 {[%clk 0:00:15]}  Rh5 {[%clk 0:00:12]} 42. d6 {[%clk 0:00:14]}  Bf5+ {[%clk 0:00:12]} 43. Kh2 {[%clk 0:00:13]}  Rxh4+ {[%clk 0:00:11]} 44. Qxh4+ {[%clk 0:00:12]}  Qxh4+ {[%clk 0:00:11]} 45. Kg1 {[%clk 0:00:13]}  Bg6 {[%clk 0:00:10]} 46. d7 {[%clk 0:00:13]}  Qd8 {[%clk 0:00:10]} 47. Rh3+ {[%clk 0:00:12]}  Kg7 {[%clk 0:00:09]} 48. Re3 {[%clk 0:00:13]}  Qxd7 {[%clk 0:00:09]} 49. f3 {[%clk 0:00:13]}  Qd2 {[%clk 0:00:08]} 0-1


[Site "https://www.chess.com"]

[Event "Late Titled Tuesday Blitz February 8 2022"]
[White "Aradhya, Garg"]
[Black "Vargas Pereda, Jesus Manue"]
[WhiteFideId "25006746"]
[BlackFideId "5115710"]
[WhiteElo "2169"]
[BlackElo "1748"]
[Result "1-0"]
[Round "03"]
[TimeControl "180+1"]
[Date "2022.02.09"]
[WhiteClock "0:00:41"]
[BlackClock "0:00:05"]

1. d4 {[%clk 0:03:00]}  d5 {[%clk 0:02:57]} 2. c4 {[%clk 0:03:01]}  c6 {[%clk 0:02:57]} 3. Nc3 {[%clk 0:03:00]}  e5 {[%clk 0:02:55]} 4. dxe5 {[%clk 0:02:57]}  d4 {[%clk 0:02:55]} 5. Ne4 {[%clk 0:02:58]}  Qa5+ {[%clk 0:02:54]} 6. Nd2 {[%clk 0:02:55]}  Qxe5 {[%clk 0:02:54]} 7. Ngf3 {[%clk 0:02:56]}  Qd6 {[%clk 0:02:45]} 8. g3 {[%clk 0:02:54]}  g6 {[%clk 0:02:43]} 9. Bg2 {[%clk 0:02:51]}  Bg7 {[%clk 0:02:43]} 10. Ne4 {[%clk 0:02:51]}  Qe7 {[%clk 0:02:39]} 11. Nxd4 {[%clk 0:02:50]}  Nf6 {[%clk 0:02:24]} 12. Nc3 {[%clk 0:02:45]}  O-O {[%clk 0:02:23]} 13. e3 {[%clk 0:02:06]}  c5 {[%clk 0:02:21]} 14. Nde2 {[%clk 0:02:01]}  Nc6 {[%clk 0:02:21]} 15. O-O {[%clk 0:02:00]}  Be6 {[%clk 0:02:15]} 16. Nd5 {[%clk 0:02:00]}  Qd7 {[%clk 0:01:35]} 17. Nec3 {[%clk 0:01:55]}  Rad8 {[%clk 0:01:32]} 18. Qa4 {[%clk 0:01:28]}  Bh3 {[%clk 0:01:20]} 19. Nxf6+ {[%clk 0:01:21]}  Bxf6 {[%clk 0:01:18]} 20. Nd5 {[%clk 0:01:21]}  Bg7 {[%clk 0:01:14]} 21. Rb1 {[%clk 0:01:19]}  Bxg2 {[%clk 0:00:34]} 22. Kxg2 {[%clk 0:01:20]}  Qg4 {[%clk 0:00:29]} 23. Qc2 {[%clk 0:01:09]}  Ne5 {[%clk 0:00:24]} 24. f3 {[%clk 0:00:58]}  Qxc4 {[%clk 0:00:24]} 25. Qxc4 {[%clk 0:00:58]}  Nxc4 {[%clk 0:00:24]} 26. e4 {[%clk 0:00:58]}  b6 {[%clk 0:00:22]} 27. Bg5 {[%clk 0:00:52]}  Rxd5 {[%clk 0:00:06]} 28. exd5 {[%clk 0:00:51]}  Nxb2 {[%clk 0:00:06]} 29. Be7 {[%clk 0:00:48]}  Re8 {[%clk 0:00:06]} 30. d6 {[%clk 0:00:48]}  Nc4 {[%clk 0:00:05]} 31. d7 {[%clk 0:00:48]}  Ra8 {[%clk 0:00:06]} 32. Rfe1 {[%clk 0:00:43]}  Bf8 {[%clk 0:00:05]} 33. d8=Q {[%clk 0:00:41]} 1-0


[Site "https://www.chess.com"]

[Event "Late Titled Tuesday Blitz February 8 2022"]
[White "Ardila, Oscar Humberto"]
[Black "Goltsev, Dmitry"]
[WhiteFideId "4404742"]
[BlackFideId "24176710"]
[WhiteElo "1898"]
[BlackElo "2273"]
[Result "1/2-1/2"]
[Round "03"]
[TimeControl "180+1"]
[Date "2022.02.09"]
[WhiteClock "0:01:05"]
[BlackClock "0:00:12"]

1. d4 {[%clk 0:02:59]}  Nf6 {[%clk 0:02:59]} 2. c4 {[%clk 0:02:59]}  e6 {[%clk 0:02:59]} 3. Nc3 {[%clk 0:03:00]}  Bb4 {[%clk 0:02:56]} 4. Bd2 {[%clk 0:03:00]}  b6 {[%clk 0:02:53]} 5. Nf3 {[%clk 0:03:01]}  Bb7 {[%clk 0:02:53]} 6. e3 {[%clk 0:03:01]}  O-O {[%clk 0:02:53]} 7. Be2 {[%clk 0:03:01]}  d6 {[%clk 0:02:51]} 8. O-O {[%clk 0:03:01]}  Nbd7 {[%clk 0:02:50]} 9. Rc1 {[%clk 0:02:58]}  a5 {[%clk 0:02:48]} 10. Nb1 {[%clk 0:02:54]}  Qe7 {[%clk 0:02:45]} 11. a3 {[%clk 0:02:52]}  Bxd2 {[%clk 0:02:45]} 12. Nbxd2 {[%clk 0:02:53]}  e5 {[%clk 0:02:45]} 13. dxe5 {[%clk 0:02:45]}  dxe5 {[%clk 0:02:46]} 14. Qc2 {[%clk 0:02:45]}  Rad8 {[%clk 0:02:46]} 15. Rfd1 {[%clk 0:02:44]}  e4 {[%clk 0:02:45]} 16. Nd4 {[%clk 0:02:42]}  Ne5 {[%clk 0:02:45]} 17. Nf1 {[%clk 0:02:40]}  c5 {[%clk 0:02:38]} 18. Nf5 {[%clk 0:02:37]}  Qe6 {[%clk 0:02:38]} 19. N5g3 {[%clk 0:02:37]}  g6 {[%clk 0:02:25]} 20. Qc3 {[%clk 0:02:28]}  h5 {[%clk 0:02:22]} 21. h4 {[%clk 0:02:22]}  Nfg4 {[%clk 0:02:18]} 22. Nh2 {[%clk 0:01:56]}  f5 {[%clk 0:02:09]} 23. Nxg4 {[%clk 0:01:53]}  hxg4 {[%clk 0:02:10]} 24. h5 {[%clk 0:01:49]}  g5 {[%clk 0:02:05]} 25. Rxd8 {[%clk 0:01:43]}  Rxd8 {[%clk 0:02:04]} 26. Rd1 {[%clk 0:01:44]}  Rxd1+ {[%clk 0:02:04]} 27. Bxd1 {[%clk 0:01:45]}  f4 {[%clk 0:02:05]} 28. Nf1 {[%clk 0:01:42]}  f3 {[%clk 0:01:44]} 29. Qd2 {[%clk 0:01:33]}  Nd3 {[%clk 0:01:26]} 30. Bc2 {[%clk 0:01:27]}  fxg2 {[%clk 0:01:23]} 31. Kxg2 {[%clk 0:01:28]}  Qf7 {[%clk 0:01:20]} 32. Ng3 {[%clk 0:01:23]}  Qxc4 {[%clk 0:01:16]} 33. Kg1 {[%clk 0:01:18]}  Qd5 {[%clk 0:01:12]} 34. Qc3 {[%clk 0:01:15]}  Ne5 {[%clk 0:01:08]} 35. Bb3 {[%clk 0:01:13]}  c4 {[%clk 0:01:08]} 36. Bxc4 {[%clk 0:01:08]}  Nxc4 {[%clk 0:01:05]} 37. Qf6 {[%clk 0:01:09]}  Qf7 {[%clk 0:00:52]} 38. Qxg5+ {[%clk 0:01:09]}  Kh7 {[%clk 0:00:51]} 39. Nf5 {[%clk 0:01:07]}  Ne5 {[%clk 0:00:47]} 40. Qh6+ {[%clk 0:01:07]}  Kg8 {[%clk 0:00:45]} 41. Qg5+ {[%clk 0:01:05]}  Kh7 {[%clk 0:00:38]} 42. Qh6+ {[%clk 0:01:05]}  Kg8 {[%clk 0:00:33]} 43. Qg5+ {[%clk 0:01:05]}  Kh8 {[%clk 0:00:21]} 44. Qh6+ {[%clk 0:01:05]}  Kg8 {[%clk 0:00:12]} 1/2-1/2


[Site "https://www.chess.com"]

[Event "Late Titled Tuesday Blitz February 8 2022"]
[White "Avazkhonov, Alikhon"]
[Black "Moreira, Ronaldo Alonso"]
[WhiteFideId "14208504"]
[BlackFideId "2110547"]
[WhiteElo "1739"]
[BlackElo "2037"]
[Result "1-0"]
[Round "03"]
[TimeControl "180+1"]
[Date "2022.02.09"]
[WhiteClock "0:00:02"]
[BlackClock "0:00:01"]

1. c4 {[%clk 0:03:00]}  Nf6 {[%clk 0:02:58]} 2. Nc3 {[%clk 0:03:00]}  e6 {[%clk 0:02:49]} 3. d4 {[%clk 0:02:58]}  d5 {[%clk 0:02:48]} 4. cxd5 {[%clk 0:02:59]}  exd5 {[%clk 0:02:48]} 5. Bg5 {[%clk 0:02:59]}  Be7 {[%clk 0:02:45]} 6. e3 {[%clk 0:02:58]}  O-O {[%clk 0:02:43]} 7. Bd3 {[%clk 0:02:55]}  h6 {[%clk 0:02:41]} 8. Bh4 {[%clk 0:02:54]}  c6 {[%clk 0:02:38]} 9. Nf3 {[%clk 0:02:50]}  Re8 {[%clk 0:02:36]} 10. O-O {[%clk 0:02:50]}  Ne4 {[%clk 0:02:29]} 11. Bxe7 {[%clk 0:02:29]}  Qxe7 {[%clk 0:02:26]} 12. Bxe4 {[%clk 0:02:21]}  dxe4 {[%clk 0:02:22]} 13. Nd2 {[%clk 0:02:12]}  Bf5 {[%clk 0:02:15]} 14. Qc2 {[%clk 0:02:05]}  Nd7 {[%clk 0:02:09]} 15. Rab1 {[%clk 0:01:41]}  Qh4 {[%clk 0:01:57]} 16. b4 {[%clk 0:01:32]}  a6 {[%clk 0:01:51]} 17. Nc4 {[%clk 0:01:22]}  Qe7 {[%clk 0:01:29]} 18. d5 {[%clk 0:01:09]}  Ne5 {[%clk 0:00:57]} 19. Nxe5 {[%clk 0:00:50]}  Qxe5 {[%clk 0:00:57]} 20. dxc6 {[%clk 0:00:50]}  Rac8 {[%clk 0:00:42]} 21. b5 {[%clk 0:00:36]}  axb5 {[%clk 0:00:39]} 22. Rxb5 {[%clk 0:00:35]}  Qf6 {[%clk 0:00:13]} 23. cxb7 {[%clk 0:00:26]}  Rxc3 {[%clk 0:00:10]} 24. Qb2 {[%clk 0:00:24]}  Rb8 {[%clk 0:00:08]} 25. a4 {[%clk 0:00:12]}  Bd7 {[%clk 0:00:07]} 26. Rb6 {[%clk 0:00:11]}  Rc6 {[%clk 0:00:05]} 27. Qxf6 {[%clk 0:00:08]}  Rxf6 {[%clk 0:00:05]} 28. Rb4 {[%clk 0:00:06]}  Ra6 {[%clk 0:00:04]} 29. Ra1 {[%clk 0:00:05]}  Kf8 {[%clk 0:00:03]} 30. Rc1 {[%clk 0:00:04]}  Ra7 {[%clk 0:00:02]} 31. Rc7 {[%clk 0:00:03]}  Ke8 {[%clk 0:00:01]} 32. Rxe4+ {[%clk 0:00:02]} 1-0


[Site "https://www.chess.com"]

[Event "Late Titled Tuesday Blitz February 8 2022"]
[White "Barp, Alberto"]
[Black "Baches Garcia, Guillermo"]
[WhiteFideId "872555"]
[BlackFideId "2209764"]
[WhiteElo "2229"]
[BlackElo "2450"]
[Result "1-0"]
[Round "03"]
[TimeControl "180+1"]
[Date "2022.02.09"]
[WhiteClock "0:00:52"]
[BlackClock "0:01:48"]

1. d4 {[%clk 0:03:00]}  Nf6 {[%clk 0:02:59]} 2. c4 {[%clk 0:02:52]}  e6 {[%clk 0:02:59]} 3. Nf3 {[%clk 0:02:45]}  d5 {[%clk 0:03:00]} 4. g3 {[%clk 0:02:45]}  Be7 {[%clk 0:02:59]} 5. Bg2 {[%clk 0:02:45]}  O-O {[%clk 0:03:00]} 6. O-O {[%clk 0:02:43]}  dxc4 {[%clk 0:03:00]} 7. Ne5 {[%clk 0:02:31]}  c5 {[%clk 0:03:01]} 8. dxc5 {[%clk 0:02:28]}  Qc7 {[%clk 0:03:01]} 9. Nxc4 {[%clk 0:02:25]}  Qxc5 {[%clk 0:03:01]} 10. b3 {[%clk 0:02:19]}  Rd8 {[%clk 0:02:56]} 11. Nbd2 {[%clk 0:02:03]}  Qc7 {[%clk 0:02:47]} 12. Bb2 {[%clk 0:01:59]}  Nc6 {[%clk 0:02:46]} 13. Rc1 {[%clk 0:01:58]}  Bd7 {[%clk 0:02:42]} 14. Ne5 {[%clk 0:01:46]}  Rac8 {[%clk 0:02:36]} 15. Nxc6 {[%clk 0:01:13]}  Bxc6 {[%clk 0:02:34]} 16. Bxc6 {[%clk 0:01:13]}  bxc6 {[%clk 0:02:31]} 17. Qc2 {[%clk 0:01:12]}  h5 {[%clk 0:02:18]} 18. Nf3 {[%clk 0:01:11]}  c5 {[%clk 0:02:08]} 19. Ng5 {[%clk 0:01:09]}  g6 {[%clk 0:02:01]} 20. Nxe6 {[%clk 0:00:59]}  Qd7 {[%clk 0:01:47]} 21. Nxd8 {[%clk 0:00:56]}  Bxd8 {[%clk 0:01:48]} 22. Rfd1 {[%clk 0:00:55]}  Qh3 {[%clk 0:01:48]} 23. Rxd8+ {[%clk 0:00:52]} 1-0


[Site "https://www.chess.com"]

[Event "Late Titled Tuesday Blitz February 8 2022"]
[White "Bernadskiy, Vitaliy"]
[Black "Sjugirov, Sanan"]
[WhiteFideId "14100371"]
[BlackFideId "4189302"]
[WhiteElo "2473"]
[BlackElo "2602"]
[Result "0-1"]
[Round "03"]
[TimeControl "180+1"]
[Date "2022.02.08"]
[WhiteClock "0:00:50"]
[BlackClock "0:01:17"]

1. e3 {[%clk 0:03:00]}  d5 {[%clk 0:02:57]} 2. c4 {[%clk 0:02:59]}  e6 {[%clk 0:02:57]} 3. b3 {[%clk 0:02:58]}  Nf6 {[%clk 0:02:56]} 4. Bb2 {[%clk 0:02:58]}  Bd6 {[%clk 0:02:53]} 5. g4 {[%clk 0:02:50]}  h6 {[%clk 0:02:50]} 6. h3 {[%clk 0:02:49]}  c5 {[%clk 0:02:42]} 7. Nf3 {[%clk 0:02:47]}  Nc6 {[%clk 0:02:41]} 8. d3 {[%clk 0:02:39]}  d4 {[%clk 0:02:34]} 9. e4 {[%clk 0:02:38]}  Nd7 {[%clk 0:02:17]} 10. h4 {[%clk 0:02:34]}  Qe7 {[%clk 0:01:57]} 11. Nbd2 {[%clk 0:02:33]}  Nde5 {[%clk 0:01:53]} 12. Nxe5 {[%clk 0:02:30]}  Bxe5 {[%clk 0:01:54]} 13. Nf3 {[%clk 0:02:29]}  Bf4 {[%clk 0:01:51]} 14. Bc1 {[%clk 0:02:27]}  Qc7 {[%clk 0:01:50]} 15. Bh3 {[%clk 0:02:21]}  Bd7 {[%clk 0:01:48]} 16. a3 {[%clk 0:02:08]}  a5 {[%clk 0:01:47]} 17. Ng1 {[%clk 0:02:04]}  Bxc1 {[%clk 0:01:43]} 18. Rxc1 {[%clk 0:01:59]}  Ne5 {[%clk 0:01:42]} 19. h5 {[%clk 0:01:36]}  g5 {[%clk 0:01:41]} 20. f3 {[%clk 0:01:14]}  a4 {[%clk 0:01:34]} 21. Bf1 {[%clk 0:01:00]}  axb3 {[%clk 0:01:31]} 22. Qxb3 {[%clk 0:00:59]}  Qa5+ {[%clk 0:01:30]} 23. Kf2 {[%clk 0:00:58]}  Qxa3 {[%clk 0:01:29]} 24. Qxb7 {[%clk 0:00:57]}  Ke7 {[%clk 0:01:20]} 25. Qc7 {[%clk 0:00:50]}  f6 {[%clk 0:01:17]} 0-1


[Site "https://www.chess.com"]